lending/lending_fUSD_20240621
["ID","MTS","AMOUNT","RATE_DAILY","PERIOD"]
[330053128,1718973064839,-500.0,0.00022191,4]
[330053129,1718973064849,-500.0,0.00022191,4]
[330053130,1718973064859,-500.0,0.00022191,4]
[330053131,1718973065060,-500.0,0.00022191,4]
[330053132,1718973065087,-731.77,0.00022191,4]
[330053133,1718973065098,-500.0,0.00022191,4]
[330053134,1718973065108,-500.0,0.00022191,4]
[330053135,1718973065118,-500.0,0.00022191,4]
[330053136,1718973065128,-300.29113998,0.00022191,4]
[330053137,1718973065144,-500.0,0.00022191,4]
[330053138,1718973065154,-500.0,0.00022191,4]
[330053139,1718973065164,-500.0,0.00022191,4]
[330053140,1718973065176,-500.0,0.00022191,4]
[330053141,1718973065186,-500.0,0.00022191,4]
[330053142,1718973065196,-500.0,0.00022191,4]
[330053143,1718973065205,-500.0,0.00022191,4]
[330053144,1718973065215,-500.0,0.00022191,4]
[330053145,1718973065224,-500.0,0.00022191,4]
[330053146,1718973065234,-778.04,0.00022191,4]
[330053147,1718973065244,-500.0,0.00022191,4]
[330053148,1718973065253,-500.0,0.00022191,4]
[330053149,1718973065263,-500.0,0.00022191,4]
[330053150,1718973065273,-738.02,0.00022191,4]
[330053151,1718973065284,-452.18,0.00022191,4]
[330053152,1718973065294,-1328.76,0.00022191,4]
[330053153,1718973065304,-772.25,0.00022191,4]
[330053154,1718973065313,-1361.86,0.00022191,4]
[330053155,1718973065322,-500.0,0.00022191,4]
[330053156,1718973065331,-500.0,0.00022191,4]
[330053157,1718973065340,-500.0,0.00022191,4]
[330053158,1718973065351,-500.0,0.00022191,4]
[330053159,1718973065363,-1044.55,0.00022191,4]
[330053160,1718973065373,-500.0,0.00022191,4]
[330053161,1718973065387,-613.18,0.00022191,4]
[330053162,1718973065397,-575.09,0.00022191,4]
[330053163,1718973065406,-500.0,0.00022191,4]
[330053164,1718973065415,-500.0,0.00022191,4]
[330053165,1718973065425,-500.0,0.00022191,4]
[330053166,1718973065436,-500.0,0.00022191,4]
[330053167,1718973065445,-500.0,0.00022191,4]
[330053168,1718973065454,-500.0,0.00022191,4]
[330053169,1718973065463,-625.83,0.00022191,4]
[330053170,1718973065472,-500.0,0.00022191,4]
[330053171,1718973065482,-500.0,0.00022191,4]
[330053172,1718973065492,-500.0,0.00022191,4]
[330053173,1718973065502,-500.0,0.00022191,4]
[330053174,1718973065511,-500.0,0.00022191,4]
[330053175,1718973065520,-529.3395194,0.00022191,4]
[330053176,1718973065529,-500.0,0.00022191,4]
[330053177,1718973065538,-500.0,0.00022191,4]
[330053178,1718973065547,-766.56,0.00022191,4]
[330053179,1718973065557,-765.75,0.00022191,4]
[330053180,1718973065566,-733.99,0.00022191,4]
[330053181,1718973065575,-366.33790275,0.00022191,4]
[330053182,1718973065586,-1432.67,0.00022191,4]
[330053183,1718973065596,-500.0,0.00022191,4]
[330053184,1718973065606,-500.0,0.00022191,4]
[330053185,1718973065616,-500.0,0.00022191,4]
[330053186,1718973065627,-1425.83,0.00022191,4]
[330053187,1718973065639,-640.93,0.00022191,4]
[330053188,1718973065649,-500.0,0.00022191,4]
[330053189,1718973065658,-894.28,0.00022191,4]
[330053190,1718973065668,-500.0,0.00022191,4]
[330053191,1718973065677,-500.0,0.00022191,4]
[330053192,1718973065688,-500.0,0.00022191,4]
[330053193,1718973065697,-500.0,0.00022191,4]
[330053194,1718973065707,-500.0,0.00022191,4]
[330053195,1718973065718,-500.0,0.00022191,4]
[330053196,1718973065727,-500.0,0.00022191,4]
[330053197,1718973065738,-500.0,0.00022191,4]
[330053198,1718973065749,-500.0,0.00022191,4]
[330053199,1718973065759,-500.0,0.00022191,4]
[330053200,1718973065768,-500.0,0.00022191,4]
[330053201,1718973065778,-500.0,0.00022191,4]
[330053202,1718973065787,-500.0,0.00022191,4]
[330053203,1718973065797,-500.0,0.00022191,4]
[330053204,1718973065806,-500.0,0.00022191,4]
[330053205,1718973065816,-582.72,0.00022191,4]
[330053206,1718973065826,-500.0,0.00022191,4]
[330053207,1718973065836,-500.0,0.00022191,4]
[330053208,1718973065846,-500.0,0.00022191,4]
[330053209,1718973065856,-518.84767542,0.00022191,4]
[330053210,1718973065866,-1219.44,0.00022191,4]
[330053211,1718973065877,-519.15,0.00022191,4]
[330053212,1718973065889,-500.0,0.00022191,4]
[330053213,1718973065898,-947.78,0.00022191,4]
[330053214,1718973065907,-510.03774104,0.00022191,4]
[330053215,1718973065917,-1045.04,0.00022191,4]
[330053216,1718973065927,-500.0,0.00022191,4]
[330053217,1718973065936,-500.0,0.00022191,4]
[330053218,1718973065946,-869.89,0.00022191,4]
[330053219,1718973065956,-500.0,0.00022191,4]
[330053220,1718973065965,-718.82,0.00022191,4]
[330053221,1718973065975,-500.0,0.00022191,4]
[330053222,1718973065986,-578.91,0.00022191,4]
[330053223,1718973065995,-555.92,0.00022191,4]
[330053224,1718973066005,-666.61,0.00022191,4]
[330053225,1718973066015,-506.58,0.00022191,4]
[330053226,1718973066026,-629.56,0.00022191,4]
[330053227,1718973066035,-500.0,0.00022191,4]
[330053228,1718973066045,-500.0,0.00022191,4]
[330053229,1718973066054,-737.85,0.00022191,4]
[330053230,1718973066063,-500.0,0.00022191,4]
[330053231,1718973066073,-500.0,0.00022191,4]
[330053232,1718973066082,-500.0,0.00022191,4]
[330053233,1718973066092,-500.0,0.00022191,4]
[330053234,1718973066101,-961.75,0.00022191,4]
[330053235,1718973066110,-500.0,0.00022191,4]
[330053236,1718973066119,-500.0,0.00022191,4]
[330053237,1718973066129,-500.0,0.00022191,4]
[330053238,1718973066140,-879.24,0.00022191,4]
[330053239,1718973066149,-500.0,0.00022191,4]
[330053240,1718973066159,-500.0,0.00022191,4]
[330053241,1718973066168,-542.87,0.00022191,4]
[330053242,1718973066178,-500.0,0.00022191,4]
[330053243,1718973066187,-639.82938204,0.00022191,4]
[330053244,1718973066199,-1089.5,0.00022191,4]
[330053245,1718973066209,-500.0,0.00022191,4]
[330053246,1718973066219,-543.96,0.00022191,4]
[330053247,1718973066228,-500.0,0.00022191,4]
[330053248,1718973066238,-500.0,0.00022191,4]
[330053249,1718973066247,-200.0,0.00022191,4]
[330053250,1718973066256,-1582.48,0.00022191,4]
[330053251,1718973066266,-834.09,0.00022191,4]
[330053252,1718973066276,-500.0,0.00022191,4]
[330053253,1718973066286,-500.0,0.00022191,4]
[330053254,1718973066296,-500.0,0.00022191,4]
[330053255,1718973066305,-500.0,0.00022191,4]
[330053256,1718973066315,-500.0,0.00022191,4]
[330053257,1718973066324,-249.58717011,0.00022191,4]
[330053258,1718973066333,-500.0,0.00022191,4]
[330053259,1718973066342,-500.0,0.00022191,4]
[330053260,1718973066352,-821.02,0.00022191,4]
[330053261,1718973066364,-413.19,0.00022191,4]
[330053262,1718973066374,-752.83,0.00022191,4]
[330053263,1718973066384,-1066.01,0.00022191,4]
[330053264,1718973066395,-562.83,0.00022191,4]
[330053265,1718973066404,-306.89,0.00022191,4]
[330053266,1718973066414,-500.0,0.00022191,4]
[330053267,1718973066423,-500.0,0.00022191,4]
[330053268,1718973066433,-500.0,0.00022191,4]
[330053269,1718973066445,-500.0,0.00022191,4]
[330053270,1718973066454,-500.0,0.00022191,4]
[330053271,1718973066463,-500.0,0.00022191,4]
[330053272,1718973066473,-500.0,0.00022191,4]
[330053273,1718973066482,-829.0,0.00022191,4]
[330053274,1718973066491,-500.0,0.00022191,4]
[330053275,1718973066500,-728.78,0.00022191,4]
[330053276,1718973066509,-500.0,0.00022191,4]
[330053277,1718973066518,-596.36,0.00022191,4]
[330053278,1718973066528,-942.37,0.00022191,4]
[330053279,1718973066537,-202.12,0.00022191,4]
[330053280,1718973066546,-666.91,0.00022191,4]
[330053281,1718973066555,-500.0,0.00022191,4]
[330053282,1718973066564,-505.54,0.00022191,4]
[330053283,1718973066573,-522.98,0.00022191,4]
[330053284,1718973066582,-670.85,0.00022191,4]
[330053285,1718973066591,-500.0,0.00022191,4]
[330053286,1718973066600,-500.0,0.00022191,4]
[330053287,1718973066609,-500.0,0.00022191,4]
[330053288,1718973066619,-500.0,0.00022191,4]
[330053289,1718973066628,-673.04,0.00022191,4]
[330053290,1718973066639,-500.0,0.00022191,4]
[330053291,1718973066649,-500.0,0.00022191,4]
[330053292,1718973066659,-500.0,0.00022191,4]
[330053293,1718973066669,-524.84881457,0.00022191,4]
[330053294,1718973066679,-500.0,0.00022191,4]
[330053295,1718973066689,-500.0,0.00022191,4]
[330053296,1718973066698,-500.0,0.00022191,4]
[330053297,1718973066707,-500.0,0.00022191,4]
[330053298,1718973066716,-514.27,0.00022191,4]
[330053299,1718973066725,-500.0,0.00022191,4]
[330053300,1718973066734,-500.0,0.00022191,4]
[330053301,1718973066742,-500.0,0.00022191,4]
[330053302,1718973066752,-500.0,0.00022191,4]
[330053303,1718973066761,-558.43,0.00022191,4]
[330053304,1718973066770,-500.0,0.00022191,4]
[330053305,1718973066779,-500.0,0.00022191,4]
[330053306,1718973066788,-500.0,0.00022191,4]
[330053307,1718973066797,-416.44730399,0.00022191,4]
[330053308,1718973066806,-500.0,0.00022191,4]
[330053309,1718973066815,-500.0,0.00022191,4]
[330053310,1718973066825,-500.0,0.00022191,4]
[330053311,1718973066834,-889.45,0.00022191,4]
[330053312,1718973066843,-555.37,0.00022191,4]
[330053313,1718973066852,-500.0,0.00022191,4]
[330053314,1718973066862,-610.65,0.00022191,4]
[330053315,1718973066871,-500.0,0.00022191,4]
[330053316,1718973066880,-500.0,0.00022191,4]
[330053317,1718973066891,-500.0,0.00022191,4]
[330053318,1718973066901,-508.02,0.00022191,4]
[330053319,1718973066910,-500.0,0.00022191,4]
[330053320,1718973066920,-500.0,0.00022191,4]
[330053321,1718973066929,-500.0,0.00022191,4]
[330053322,1718973066939,-1000.0,0.00022191,5]
[330053323,1718973066948,-526.07407703,0.00022191,4]
[330053324,1718973066957,-974.1,0.00022191,4]
[330053325,1718973066966,-250.0,0.00022191,4]
[330053326,1718973066976,-500.0,0.00022191,4]
[330053327,1718973066985,-500.0,0.00022191,4]
[330053328,1718973066994,-500.0,0.00022191,4]
[330053329,1718973067003,-666.87,0.00022191,4]
[330053330,1718973067012,-500.0,0.00022191,4]
[330053331,1718973067021,-500.0,0.00022191,4]
[330053332,1718973067030,-500.0,0.00022191,4]
[330053333,1718973067039,-500.0,0.00022191,4]
[330053334,1718973067048,-733.74,0.00022191,4]
[330053335,1718973067058,-500.0,0.00022191,2]
[330053336,1718973067067,-500.0,0.00022191,4]
[330053337,1718973067076,-500.0,0.00022191,4]
[330053338,1718973067085,-500.0,0.00022191,4]
[330053339,1718973067094,-500.0,0.00022191,4]
[330053340,1718973067103,-535.47,0.00022191,4]
[330053341,1718973067113,-1269.19,0.00022191,4]
[330053342,1718973067122,-500.0,0.00022191,4]
[330053343,1718973067131,-530.27128798,0.00022191,4]
[330053344,1718973067141,-453.11910223,0.00022191,4]
[330053345,1718973067150,-1118.89,0.00022191,4]
[330053346,1718973067159,-520.17,0.00022191,4]
[330053347,1718973067168,-503.52447314,0.00022191,4]
[330053348,1718973067177,-500.0,0.00022191,4]
[330053349,1718973067187,-500.0,0.00022191,4]
[330053350,1718973067196,-500.0,0.00022191,4]
[330053351,1718973067205,-500.0,0.00022191,4]
[330053352,1718973067215,-500.0,0.00022191,2]
[330053353,1718973067225,-500.0,0.00022191,4]
[330053354,1718973067236,-500.0,0.00022191,4]
[330053355,1718973067246,-500.0,0.00022191,4]
[330053356,1718973067256,-500.0,0.00022191,4]
[330053357,1718973067266,-906.92,0.00022191,4]
[330053358,1718973067276,-898.0,0.00022191,4]
[330053359,1718973067286,-500.0,0.00022191,4]
[330053360,1718973067295,-500.0,0.00022191,4]
[330053361,1718973067304,-500.0,0.00022191,4]
[330053362,1718973067313,-736.98,0.00022191,4]
[330053363,1718973067322,-1103.79,0.00022191,4]
[330053364,1718973067332,-500.0,0.00022191,4]
[330053365,1718973067341,-770.84,0.00022191,4]
[330053366,1718973067351,-593.46640665,0.00022191,4]
[330053367,1718973067361,-500.0,0.00022191,4]
[330053368,1718973067371,-500.0,0.00022191,4]
[330053369,1718973067380,-500.0,0.00022191,4]
[330053370,1718973067391,-677.07,0.00022191,4]
[330053371,1718973067401,-500.0,0.00022191,4]
[330053372,1718973067410,-500.0,0.00022191,4]
[330053373,1718973067419,-500.0,0.00022191,4]
[330053374,1718973067428,-500.0,0.00022191,4]
[330053375,1718973067438,-500.0,0.00022191,4]
[330053376,1718973067450,-503.77,0.00022191,4]
[330053377,1718973067460,-536.98,0.00022191,4]
[330053378,1718973067470,-610.87,0.00022191,4]
[330053379,1718973067480,-500.0,0.00022191,4]
[330053380,1718973067489,-500.0,0.00022191,4]
[330053381,1718973067498,-626.8,0.00022191,4]
[330053382,1718973067507,-500.0,0.00022191,4]
[330053383,1718973067517,-500.0,0.00022191,4]
[330053384,1718973067528,-500.0,0.00022191,4]
[330053385,1718973067540,-500.0,0.00022191,4]
[330053386,1718973067550,-765.55,0.00022191,4]
[330053387,1718973067560,-500.0,0.00022191,4]
[330053388,1718973067569,-1081.91,0.00022191,4]
[330053389,1718973067578,-542.02,0.00022191,4]
[330053390,1718973067589,-683.36,0.00022191,4]
[330053391,1718973067600,-591.5,0.00022191,4]
[330053392,1718973067611,-500.0,0.00022191,4]
[330053393,1718973067620,-500.0,0.00022191,4]
[330053394,1718973067630,-500.0,0.00022191,4]
[330053395,1718973067641,-500.0,0.00022191,4]
[330053396,1718973067650,-586.39,0.00022191,4]
[330053397,1718973067659,-547.01927026,0.00022191,4]
[330053398,1718973067668,-500.0,0.00022191,4]
[330053399,1718973067677,-500.0,0.00022191,4]
[330053400,1718973067686,-500.0,0.00022191,4]
[330053401,1718973067695,-500.0,0.00022191,4]
[330053402,1718973067704,-500.0,0.00022191,4]
[330053403,1718973067713,-500.0,0.00022191,4]
[330053404,1718973067722,-1853.17,0.00022191,4]
[330053405,1718973067731,-771.17,0.00022191,4]
[330053406,1718973067740,-450.99259651,0.00022191,4]
[330053407,1718973067749,-822.63,0.00022191,4]
[330053408,1718973067758,-500.0,0.00022191,4]
[330053409,1718973067767,-612.33,0.00022191,4]
[330053410,1718973067776,-927.46,0.00022191,4]
[330053411,1718973067786,-500.0,0.00022191,4]
[330053412,1718973067795,-563.13,0.00022191,4]
[330053413,1718973067806,-847.15,0.00022191,4]
[330053414,1718973067815,-1576.9,0.00022191,4]
[330053415,1718973067827,-500.0,0.00022191,4]
[330053416,1718973067837,-500.0,0.00022191,4]
[330053417,1718973067847,-505.54,0.00022191,4]
[330053418,1718973067857,-848.39,0.00022191,4]
[330053419,1718973067866,-591.03,0.00022191,4]
[330053420,1718973067876,-500.0,0.00022191,4]
[330053421,1718973067886,-830.75,0.00022191,4]
[330053422,1718973067895,-500.0,0.00022191,4]
[330053423,1718973067904,-151.0,0.00022191,7]
[330053424,1718973067913,-151.0,0.00022191,7]
[330053425,1718973067928,-500.0,0.00022191,4]
[330053426,1718973067938,-500.0,0.00022191,4]
[330053427,1718973067947,-500.0,0.00022191,4]
[330053428,1718973067956,-552.45,0.00022191,4]
[330053429,1718973067965,-500.0,0.00022191,4]
[330053430,1718973067974,-500.0,0.00022191,4]
[330053431,1718973067983,-289.584926,0.00022191,7]
[330053432,1718973067993,-500.0,0.00022191,4]
[330053433,1718973068002,-500.0,0.00022191,4]
[330053434,1718973068011,-500.0,0.00022191,4]
[330053435,1718973068020,-500.0,0.00022191,4]
[330053436,1718973068234,-500.0,0.00022191,4]
[330053437,1718973068245,-1095.4,0.00022191,4]
[330053438,1718973068254,-542.93,0.00022191,4]
[330053439,1718973068263,-500.0,0.00022191,4]
[330053440,1718973068273,-1358.1,0.00022191,4]
[330053441,1718973068283,-500.0,0.00022191,4]
[330053442,1718973068293,-507.97817457,0.00022191,4]
[330053443,1718973068304,-583.58,0.00022191,4]
[330053444,1718973068313,-500.0,0.00022191,4]
[330053445,1718973068323,-500.0,0.00022191,4]
[330053446,1718973068333,-500.0,0.00022191,4]
[330053447,1718973068343,-704.63,0.00022191,4]
[330053448,1718973068359,-869.7,0.00022191,4]
[330053449,1718973068369,-500.0,0.00022191,4]
[330053450,1718973068379,-1315.58,0.00022191,4]
[330053451,1718973068396,-500.0,0.00022191,4]
[330053452,1718973068406,-500.0,0.00022191,4]
[330053453,1718973068415,-500.0,0.00022191,4]
[330053454,1718973068424,-500.0,0.00022191,4]
[330053455,1718973068433,-500.0,0.00022191,4]
[330053456,1718973068444,-500.0,0.00022191,4]
[330053457,1718973068453,-500.0,0.00022191,4]
[330053458,1718973068462,-500.0,0.00022191,4]
[330053459,1718973068471,-535.02730176,0.00022191,4]
[330053460,1718973068481,-1285.25,0.00022191,4]
[330053461,1718973068491,-1174.49,0.00022191,4]
[330053462,1718973068501,-1989.42,0.00022191,4]
[330053463,1718973068510,-1076.58,0.00022191,4]
[330053464,1718973068520,-500.0,0.00022191,4]
[330053465,1718973068530,-500.0,0.00022191,4]
[330053466,1718973068541,-500.0,0.00022191,4]
[330053467,1718973068551,-500.0,0.00022191,4]
[330053468,1718973068561,-500.0,0.00022191,4]
[330053469,1718973068570,-500.0,0.00022191,4]
[330053470,1718973068580,-500.0,0.00022191,4]
[330053471,1718973068590,-500.0,0.00022191,4]
[330053472,1718973068599,-1255.37,0.00022191,4]
[330053473,1718973068608,-500.0,0.00022191,4]
[330053474,1718973068616,-151.0,0.00022191,7]
[330053475,1718973068626,-151.0,0.00022191,7]
[330053476,1718973068639,-500.0,0.00022191,4]
[330053477,1718973068648,-1314.98,0.00022191,4]
[330053478,1718973068657,-867.46,0.00022191,4]
[330053479,1718973068666,-500.0,0.00022191,4]
[330053480,1718973068674,-500.0,0.00022191,4]
[330053481,1718973068683,-1397.46,0.00022191,4]
[330053482,1718973068692,-525.31,0.00022191,4]
[330053483,1718973068701,-1109.28,0.00022191,4]
[330053484,1718973068710,-500.0,0.00022191,4]
[330053485,1718973068720,-500.0,0.00022191,4]
[330053486,1718973068729,-500.0,0.00022191,4]
[330053487,1718973068739,-500.0,0.00022191,4]
[330053488,1718973068748,-1120.12,0.00022191,4]
[330053489,1718973068757,-2270.34,0.00022191,4]
[330053490,1718973068766,-500.0,0.00022191,4]
[330053491,1718973068775,-500.0,0.00022191,4]
[330053492,1718973068784,-549.12,0.00022191,4]
[330053493,1718973068795,-500.0,0.00022191,4]
[330053494,1718973068804,-500.0,0.00022191,4]
[330053495,1718973068813,-500.0,0.00022191,4]
[330053496,1718973068822,-1166.83,0.00022191,4]
[330053497,1718973068832,-595.73,0.00022191,4]
[330053498,1718973068841,-500.0,0.00022191,4]
[330053499,1718973068851,-648.85,0.00022191,4]
[330053500,1718973068860,-500.0,0.00022191,4]
[330053501,1718973068869,-500.0,0.00022191,4]
[330053502,1718973068878,-500.0,0.00022191,4]
[330053503,1718973068890,-500.0,0.00022191,4]
[330053504,1718973068899,-500.0,0.00022191,4]
[330053505,1718973068908,-500.0,0.00022191,4]
[330053506,1718973068917,-500.0,0.00022191,4]
[330053507,1718973068925,-242.99819265,0.00022191,4]
[330053508,1718973068935,-500.0,0.00022191,4]
[330053509,1718973068944,-500.0,0.00022191,4]
[330053510,1718973068953,-500.0,0.00022191,4]
[330053511,1718973068962,-500.0,0.00022191,4]
[330053512,1718973068971,-1303.27,0.00022191,4]
[330053513,1718973068980,-605.74,0.00022191,4]
[330053514,1718973068990,-500.0,0.00022191,4]
[330053515,1718973068999,-500.0,0.00022191,4]
[330053516,1718973069008,-500.0,0.00022191,4]
[330053517,1718973069017,-500.0,0.00022191,4]
[330053518,1718973069027,-500.0,0.00022191,4]
[330053519,1718973069036,-500.0,0.00022191,4]
[330053520,1718973069045,-500.0,0.00022191,4]
[330053521,1718973069054,-500.0,0.00022191,4]
[330053522,1718973069064,-500.0,0.00022191,4]
[330053523,1718973069077,-500.0,0.00022191,4]
[330053524,1718973069086,-572.26,0.00022191,4]
[330053525,1718973069096,-500.0,0.00022191,4]
[330053526,1718973069105,-500.0,0.00022191,4]
[330053527,1718973069114,-500.0,0.00022191,4]
[330053528,1718973069124,-500.0,0.00022191,4]
[330053529,1718973069133,-500.0,0.00022191,4]
[330053530,1718973069145,-1693.5,0.00022191,4]
[330053531,1718973069154,-968.4,0.00022191,4]
[330053532,1718973069163,-1441.55,0.00022191,4]
[330053533,1718973069172,-966.58,0.00022191,4]
[330053534,1718973069181,-811.6,0.00022191,4]
[330053535,1718973069190,-500.0,0.00022191,4]
[330053536,1718973069199,-1105.85,0.00022191,4]
[330053537,1718973069208,-750.32,0.00022191,4]
[330053538,1718973069218,-500.0,0.00022191,4]
[330053539,1718973069227,-873.73,0.00022191,4]
[330053540,1718973069236,-625.43,0.00022191,4]
[330053541,1718973069246,-500.0,0.00022191,4]
[330053542,1718973069256,-783.85,0.00022191,4]
[330053543,1718973069265,-2330.25,0.00022191,4]
[330053544,1718973069274,-500.0,0.00022191,4]
[330053545,1718973069283,-500.0,0.00022191,4]
[330053546,1718973069292,-500.0,0.00022191,4]
[330053547,1718973069301,-646.09,0.00022191,4]
[330053548,1718973069310,-903.49,0.00022191,4]
[330053549,1718973069319,-563.87,0.00022191,4]
[330053550,1718973069328,-500.0,0.00022191,4]
[330053551,1718973069338,-500.0,0.00022191,4]
[330053552,1718973069346,-500.0,0.00022191,4]
[330053553,1718973069357,-500.0,0.00022191,4]
[330053554,1718973069369,-500.0,0.00022191,4]
[330053555,1718973069379,-500.0,0.00022191,4]
[330053556,1718973069390,-500.0,0.00022191,4]
[330053557,1718973069399,-500.0,0.00022191,4]
[330053558,1718973069408,-500.0,0.00022191,4]
[330053559,1718973069417,-535.6086827,0.00022191,4]
[330053560,1718973069427,-2042.42,0.00022191,4]
[330053561,1718973069435,-500.0,0.00022191,4]
[330053562,1718973069448,-623.74,0.00022191,4]
[330053563,1718973069458,-1784.67,0.00022191,4]
[330053564,1718973069467,-500.31,0.00022191,4]
[330053565,1718973069476,-500.0,0.00022191,4]
[330053566,1718973069485,-151.0,0.00022191,7]
[330053567,1718973069494,-500.0,0.00022191,4]
[330053568,1718973069504,-523.88503745,0.00022191,4]
[330053569,1718973069513,-151.0,0.00022191,7]
[330053570,1718973069523,-1184.01,0.00022191,4]
[330053571,1718973069532,-604.47,0.00022191,4]
[330053572,1718973069541,-1065.25721268,0.00022191,2]
[330053573,1718973069550,-500.0,0.00022191,4]
[330053574,1718973069560,-565.33329272,0.00022191,4]
[330053575,1718973069570,-1071.68,0.00022191,4]
[330053576,1718973069581,-500.0,0.00022191,4]
[330053577,1718973069592,-2620.64,0.00022191,4]
[330053578,1718973069607,-500.0,0.00022191,4]
[330053579,1718973069629,-500.0,0.00022191,4]
[330053580,1718973069648,-503.94,0.00022191,4]
[330053581,1718973069668,-500.0,0.00022191,4]
[330053582,1718973069690,-1565.94,0.00022191,4]
[330053583,1718973069709,-500.0,0.00022191,4]
[330053584,1718973069729,-321.72912613,0.00022191,4]
[330053585,1718973069744,-507.68635269,0.00022191,4]
[330053586,1718973069761,-1425.15,0.00022191,4]
[330053587,1718973069779,-500.0,0.00022191,4]
[330053588,1718973069798,-605.38,0.00022191,4]
[330053589,1718973069812,-500.0,0.00022191,2]
[330053590,1718973069832,-898.27,0.00022191,4]
[330053591,1718973069846,-500.0,0.00022191,4]
[330053592,1718973069863,-2220.38,0.00022191,4]
[330053593,1718973069877,-500.0,0.00022191,4]
[330053594,1718973069893,-3466.33,0.00022191,4]
[330053595,1718973069908,-1551.73,0.00022191,4]
[330053596,1718973069923,-500.0,0.00022191,4]
[330053597,1718973069940,-500.0,0.00022191,4]
[330053598,1718973069955,-500.0,0.00022191,4]
[330053599,1718973069970,-500.0,0.00022191,4]
[330053600,1718973069985,-500.0,0.00022191,4]
[330053601,1718973070001,-500.0,0.00022191,4]
[330053602,1718973070016,-1235.65,0.00022191,4]
[330053603,1718973070032,-500.0,0.00022191,4]
[330053604,1718973070046,-1101.84,0.00022191,4]
[330053605,1718973070062,-3196.55,0.00022191,4]
[330053606,1718973070077,-1195.63,0.00022191,4]
[330053607,1718973070092,-500.0,0.00022191,4]
[330053608,1718973070108,-500.0,0.00022191,4]
[330053609,1718973070122,-500.0,0.00022191,4]
[330053610,1718973070138,-555.93,0.00022191,4]
[330053611,1718973070153,-737.16,0.00022191,4]
[330053612,1718973070168,-850.5,0.00022191,4]
[330053613,1718973070184,-599.6,0.00022191,4]
[330053614,1718973070198,-500.0,0.00022191,4]
[330053615,1718973070213,-605.63,0.00022191,4]
[330053616,1718973070227,-1062.96,0.00022191,4]
[330053617,1718973070242,-1809.27,0.00022191,4]
[330053618,1718973070258,-500.0,0.00022191,4]
[330053619,1718973070276,-500.0,0.00022191,4]
[330053620,1718973070294,-500.0,0.00022191,4]
[330053621,1718973070312,-500.0,0.00022191,4]
[330053622,1718973070341,-500.0,0.00022191,4]
[330053623,1718973070360,-944.93,0.00022191,4]
[330053624,1718973070380,-566.78995866,0.00022191,4]
[330053625,1718973070400,-1145.65,0.00022191,4]
[330053626,1718973070417,-988.26,0.00022191,4]
[330053627,1718973070433,-875.56,0.00022191,4]